fUST/lending_fUST_20240912
["ID","MTS","AMOUNT","RATE_DAILY","PERIOD"]
[337773306,1726099838931,-150.112233,0.000246,5]
[337773307,1726099838940,-150.112233,0.000246,4]
[337773308,1726099838949,-150.112233,0.000246,5]
[337773309,1726099838959,-150.112233,0.000246,5]
[337773310,1726099838968,-150.112233,0.000246,5]
[337773311,1726099838977,-896.05119593,0.00024615,2]
[337773312,1726099839086,-7.14199455,0.00024615,2]
[337773313,1726099839096,-151.0,0.00024627,7]
[337773314,1726099839105,-151.0,0.00024627,7]
[337773315,1726099839115,-815.23271264,0.0002463,2]
[337773343,1726099840508,-5.02533416,0.0002463,2]
[337773345,1726099840518,-1328.74950828,0.00024635,2]
[337773347,1726099840529,-160.0,0.00024636,2]
[337773349,1726099840538,-500.0,0.00024636,2]
[337773351,1726099840549,-315.98554874,0.00024636,2]
[337773353,1726099840558,-188.93085964,0.00024636,2]
[337773355,1726099840568,-416.19076138,0.00024636,2]
[337773357,1726099840578,-500.0,0.00024636,2]
[337773359,1726099840588,-584.37533195,0.00024636,2]
[337773361,1726099840597,-500.0,0.00024636,2]
[337773363,1726099840607,-500.0,0.00024636,2]
[337773365,1726099840616,-500.0,0.00024636,2]
[337773367,1726099840626,-500.0,0.00024636,2]
[337773369,1726099840636,-568.95556631,0.00024636,2]
[337773371,1726099840645,-500.0,0.00024636,2]
[337773373,1726099840655,-500.0,0.00024636,2]
[337773375,1726099840664,-500.0,0.00024636,2]
[337773377,1726099840674,-43376.64384197,0.00024637,3]
[337773384,1726099843579,-166.666666,0.00023233,2]
[337773385,1726099843589,-302.36509981,0.00024514,2]
[337773386,1726099843599,-2277.58823419,0.00024637,3]
[337773387,1726099843610,-74281.28070514,0.00024637,3]
[337773388,1726099843622,-1208.55044815,0.00024637,3]
[337773414,1726099846731,-151.0,0.00024627,7]
[337773415,1726099846741,-664.37475414,0.00024635,2]
[337773416,1726099846750,-807.87454058,0.00024637,3]
[337773417,1726099846762,-362.53539744,0.00024637,3]
[337773421,1726100013885,3999.7,0.00019,10]
[337773436,1726100736114,-182.29834,0.00021168,2]
[337773437,1726100736138,-182.98694149,0.00021653,2]
[337773438,1726100736161,-3000.0,0.00021682,2]
[337773439,1726100736182,-83.20441888,0.00021753,2]
[337773440,1726100842123,-167.79558112,0.00021753,2]
[337773441,1726100842144,-295.372496,0.00021918,2]
[337773442,1726100842165,-233.35069,0.00022018,2]
[337773443,1726100842185,-3609.0979929,0.00022122,2]
[337773444,1726100842207,-166.666666,0.00022215,2]
[337773445,1726100842227,-300.0,0.00022274,2]
[337773446,1726100842251,-300.0,0.00022274,2]
[337773447,1726100842274,-302.87358982,0.00022276,2]
[337773448,1726100844101,-452.90089144,0.00022276,2]
[337773449,1726100880477,200.0,0.00025,120]
[337773454,1726100968169,-21002.71800784,0.00022276,2]
[337773455,1726100968192,-166.666666,0.00022297,2]
[337773456,1726100968214,-166.666666,0.0002238,2]
[337773457,1726100968235,-8.9616166,0.00022411,2]
[337773460,1726100992150,156.81757587,0.00028,120]
[337773470,1726101033728,-163.5115604,0.00022411,2]
[337773471,1726101033740,-166.666666,0.00022463,2]
[337773472,1726101033752,-166.666666,0.00022545,2]
[337773473,1726101033763,-166.666666,0.00022628,2]
[337773474,1726101033775,-166.666666,0.00022711,2]
[337773475,1726101033786,-166.666666,0.00022794,2]
[337773476,1726101033800,-166.666666,0.00022876,2]
[337773478,1726101033812,-166.666666,0.00022959,2]
[337773479,1726101033824,-166.666666,0.00023042,2]
[337773480,1726101033837,-166.666666,0.00023124,2]
[337773481,1726101033848,-166.666666,0.00023207,2]
[337773482,1726101033859,-166.666666,0.0002329,2]
[337773483,1726101033872,-166.666666,0.00023372,2]
[337773484,1726101033882,-150.0,0.00023747,2]
[337773485,1726101033894,-306.0,0.00023836,2]
[337773486,1726101033915,-416.2669517,0.00023836,2]
[337773487,1726101033931,-150.0,0.00023915,2]
[337773488,1726101033945,-767.06149339,0.00023944,2]
[337773498,1726101037878,-4547.65744637,0.00023944,2]
[337773499,1726101037888,-5314.71893976,0.00024288,2]
[337773500,1726101037897,-150.0,0.00024316,2]
[337773501,1726101037907,-1000.0,0.000245,2]
[337773502,1726101037916,-217.8456015,0.00024534,2]
[337773503,1726101037925,-780.70939194,0.00024547,2]
[337773504,1726101037934,-500.0,0.000246,2]
[337773505,1726101037944,-160.0,0.00024626,2]
[337773506,1726101037955,-500.0,0.00024626,2]
[337773507,1726101037964,-315.98554874,0.00024626,2]
[337773508,1726101037973,-416.19076138,0.00024626,2]
[337773509,1726101037983,-188.93085964,0.00024626,2]
[337773510,1726101037992,-500.0,0.00024626,2]
[337773511,1726101038002,-500.0,0.00024626,2]
[337773512,1726101038012,-584.37533195,0.00024626,2]
[337773513,1726101038023,-500.0,0.00024626,2]
[337773514,1726101038032,-568.95556631,0.00024626,2]
[337773515,1726101038042,-500.0,0.00024626,2]
[337773516,1726101038052,-500.0,0.00024626,2]
[337773517,1726101038061,-500.0,0.00024626,2]
[337773518,1726101038070,-500.0,0.00024626,2]
[337773519,1726101038080,-500.0,0.00024626,2]
[337773520,1726101038089,-6222.39509492,0.00024627,3]
[337773529,1726101039621,-51594.96898543,0.00024627,3]
[337773536,1726101039680,-230178.65109865,0.00024627,3]
[337773538,1726101039690,-129043.94950582,0.00024627,3]
[337773580,1726101043457,-2480.22679883,0.00024527,2]
[337773581,1726101043467,-60434.44082318,0.00024627,3]
[337773582,1726101043477,-151.0,0.00024627,7]
[337773583,1726101043486,-996.56213121,0.00024635,2]
[337773584,1726101043495,-10219.05095192,0.00024637,3]
[337773585,1726101043538,-3477.00620538,0.00024637,3]
[337773605,1726101045871,-17883.6745642,0.00024637,3]
[337773606,1726101045881,-150.0,0.00024637,3]
[337773607,1726101045890,-150.0,0.00024637,3]
[337773608,1726101045899,-151.0,0.00024637,7]
[337773609,1726101045910,-31579.7317215,0.00024637,3]
[337773610,1726101045919,-150.0,0.00024642,2]
[337773611,1726101045929,-150.0,0.00024642,2]
[337773612,1726101045941,-150.0,0.00024642,2]
[337773613,1726101045951,-524.0,0.00024642,2]
[337773615,1726101045962,-63159.4634429,0.00024647,3]
[337773617,1726101045972,-202.60543783,0.00024647,7]
[337773619,1726101045981,-192.066876,0.00024647,7]
[337773620,1726101045991,-151.0,0.00024647,7]
[337773622,1726101046001,-393.132732,0.00024647,7]
[337773624,1726101046010,-393.132732,0.00024647,7]
[337773625,1726101046019,-393.132732,0.00024647,7]
[337773627,1726101046029,-393.132732,0.00024647,7]
[337773628,1726101046040,-151.0,0.00024647,7]
[337773629,1726101046049,-151.0,0.00024647,7]
[337773630,1726101046059,-157.333388,0.00024647,7]
[337773631,1726101046068,-151.0,0.00024647,7]
[337773633,1726101046077,-151.0,0.00024647,7]
[337773635,1726101046087,-151.0,0.00024647,7]
[337773638,1726101046096,-151.0,0.00024647,7]
[337773639,1726101046105,-151.0,0.00024647,7]
[337773641,1726101046114,-151.0,0.00024647,7]
[337773642,1726101046123,-151.0,0.00024647,7]
[337773643,1726101046135,-151.0,0.00024647,7]
[337773644,1726101046144,-151.0,0.00024647,7]
[337773645,1726101046154,-151.0,0.00024647,7]
[337773646,1726101046166,-151.0,0.00024647,7]
[337773647,1726101046175,-151.0,0.00024647,7]
[337773648,1726101046184,-151.0,0.00024647,7]
[337773649,1726101046194,-151.0,0.00024647,7]
[337773650,1726101046204,-151.0,0.00024647,7]
[337773651,1726101046214,-151.0,0.00024647,7]
[337773652,1726101046224,-151.0,0.00024647,7]
[337773653,1726101046234,-230.123695,0.00024647,7]
[337773654,1726101046244,-230.123695,0.00024647,7]
[337773655,1726101046253,-230.123695,0.00024647,7]
[337773656,1726101046265,-230.123695,0.00024647,7]
[337773657,1726101046274,-151.0,0.00024647,7]
[337773658,1726101046283,-151.0,0.00024647,7]
[337773659,1726101046293,-151.0,0.00024647,7]
[337773660,1726101046303,-151.0,0.00024647,7]
[337773661,1726101046313,-151.0,0.00024647,7]
[337773662,1726101046324,-236.085312,0.00024647,7]
[337773663,1726101046335,-151.0,0.00024647,7]
[337773664,1726101046345,-152.567165,0.00024647,7]
[337773665,1726101046355,-151.0,0.00024647,7]
[337773666,1726101046364,-151.0,0.00024647,7]
[337773667,1726101046374,-151.0,0.00024647,7]
[337773668,1726101046383,-151.0,0.00024647,7]
[337773669,1726101046393,-151.0,0.00024647,7]
[337773670,1726101046403,-151.0,0.00024647,7]
[337773671,1726101046413,-151.0,0.00024647,7]
[337773672,1726101046424,-151.0,0.00024647,7]
[337773673,1726101046435,-151.0,0.00024647,7]
[337773674,1726101046444,-151.0,0.00024647,7]
[337773675,1726101046454,-151.0,0.00024647,7]
[337773676,1726101046463,-151.0,0.00024647,7]
[337773677,1726101046473,-835.510464,0.00024647,7]
[337773678,1726101046483,-160.0,0.00024656,2]
[337773679,1726101046492,-151.0,0.00024657,7]
[337773680,1726101046502,-151.0,0.00024657,7]
[337773681,1726101046512,-151.0,0.00024657,7]
[337773682,1726101046521,-209.40508,0.00024657,7]
[337773683,1726101046531,-500.0,0.00024657,2]
[337773684,1726101046539,-500.0,0.00024657,2]
[337773685,1726101046549,-500.0,0.00024657,2]
[337773686,1726101046559,-2151.73,0.00024657,2]
[337773687,1726101046569,-592.95706008,0.00024657,2]
[337773688,1726101046578,-500.0,0.00024657,2]
[337773689,1726101046589,-799.2,0.00024657,2]
[337773690,1726101046598,-500.0,0.00024657,2]
[337773691,1726101046607,-375.29575281,0.00024657,2]
[337773692,1726101046617,-500.0,0.00024657,2]
[337773693,1726101046626,-500.0,0.00024657,2]
[337773694,1726101046635,-325.36413496,0.00024657,2]
[337773695,1726101046645,-500.0,0.00024657,2]
[337773696,1726101046653,-500.0,0.00024657,2]
[337773697,1726101046662,-605.4642187,0.00024657,2]
[337773698,1726101046672,-500.0,0.00024657,2]
[337773699,1726101046681,-500.0,0.00024657,2]
[337773700,1726101046690,-500.0,0.00024657,2]
[337773701,1726101046699,-622.77,0.00024657,2]
[337773702,1726101046708,-500.0,0.00024657,2]
[337773703,1726101046718,-778.65,0.00024657,2]
[337773704,1726101046727,-500.0,0.00024657,2]
[337773705,1726101046736,-500.0,0.00024657,2]
[337773706,1726101046746,-500.0,0.00024657,2]
[337773707,1726101046755,-500.0,0.00024657,2]
[337773708,1726101046764,-500.0,0.00024657,2]
[337773709,1726101046773,-500.0,0.00024657,2]
[337773710,1726101046782,-1108.02,0.00024657,2]
[337773711,1726101046792,-500.0,0.00024657,2]
[337773712,1726101046801,-500.0,0.00024657,2]
[337773713,1726101046810,-500.0,0.00024657,2]
[337773714,1726101046819,-500.0,0.00024657,2]
[337773715,1726101046828,-500.0,0.00024657,2]
[337773716,1726101046838,-500.0,0.00024657,2]
[337773717,1726101046848,-500.0,0.00024657,2]
[337773718,1726101046857,-1000.0,0.00024657,2]
[337773719,1726101046866,-500.0,0.00024657,2]
[337773720,1726101046875,-500.0,0.00024657,2]
[337773721,1726101046885,-500.0,0.00024657,2]
[337773722,1726101046893,-500.0,0.00024657,2]
[337773723,1726101046903,-500.0,0.00024657,2]
[337773724,1726101046912,-502.95153156,0.00024657,2]
[337773725,1726101046922,-500.0,0.00024657,2]
[337773726,1726101046931,-500.0,0.00024657,2]
[337773727,1726101046942,-723.05,0.00024657,2]
[337773728,1726101047116,-500.0,0.00024657,2]
[337773729,1726101047126,-500.0,0.00024657,2]
[337773730,1726101047136,-500.0,0.00024657,2]
[337773731,1726101047145,-500.0,0.00024657,2]
[337773732,1726101047154,-500.0,0.00024657,2]
[337773733,1726101047166,-500.0,0.00024657,2]
[337773734,1726101047175,-500.0,0.00024657,2]
[337773735,1726101047184,-504.00861516,0.00024657,2]
[337773736,1726101047196,-500.0,0.00024657,2]
[337773737,1726101047207,-500.0,0.00024657,2]
[337773738,1726101047217,-514.31,0.00024657,2]
[337773739,1726101047227,-558.53,0.00024657,2]
[337773740,1726101047238,-500.0,0.00024657,2]
[337773741,1726101047247,-500.0,0.00024657,2]
[337773742,1726101047258,-500.0,0.00024657,2]
[337773743,1726101047267,-500.0,0.00024657,2]
[337773744,1726101047278,-500.0,0.00024657,2]
[337773745,1726101047287,-500.0,0.00024657,2]
[337773746,1726101047297,-500.0,0.00024657,2]
[337773747,1726101047307,-500.0,0.00024657,2]
[337773748,1726101047317,-500.0,0.00024657,2]
[337773749,1726101047327,-500.0,0.00024657,2]
[337773750,1726101047338,-500.0,0.00024657,2]
[337773751,1726101047348,-393.132732,0.00024657,7]
[337773752,1726101047357,-500.0,0.00024657,2]
[337773753,1726101047367,-393.132732,0.00024657,7]
[337773754,1726101047376,-393.132732,0.00024657,7]
[337773755,1726101047386,-500.0,0.00024657,2]
[337773756,1726101047395,-450.94064555,0.00024657,2]
[337773757,1726101047405,-393.132732,0.00024657,7]
[337773758,1726101047415,-393.132732,0.00024657,7]
[337773759,1726101047424,-393.132732,0.00024657,7]
[337773760,1726101047433,-393.132732,0.00024657,7]
[337773761,1726101047443,-393.132732,0.00024657,7]
[337773762,1726101047453,-500.0,0.00024657,2]
[337773763,1726101047462,-500.0,0.00024657,2]
[337773764,1726101047472,-393.132732,0.00024657,7]
[337773765,1726101047481,-393.132732,0.00024657,7]
[337773766,1726101047490,-393.132732,0.00024657,7]
[337773767,1726101047499,-393.132732,0.00024657,7]
[337773768,1726101047509,-393.132732,0.00024657,7]
[337773769,1726101047518,-393.132732,0.00024657,7]
[337773770,1726101047527,-393.132732,0.00024657,7]
[337773771,1726101047537,-500.0,0.00024657,2]
[337773772,1726101047547,-393.132742,0.00024657,7]
[337773773,1726101047557,-500.0,0.00024657,2]
[337773774,1726101047566,-519.87,0.00024657,2]
[337773775,1726101047575,-500.0,0.00024657,2]
[337773776,1726101047587,-500.0,0.00024657,2]
[337773777,1726101047596,-1130.9,0.00024657,2]
[337773778,1726101047605,-500.0,0.00024657,2]
[337773779,1726101047615,-500.0,0.00024657,2]
[337773780,1726101047625,-500.0,0.00024657,2]
[337773781,1726101047635,-647.66,0.00024657,2]
[337773782,1726101047644,-500.0,0.00024657,2]
[337773783,1726101047654,-621.55398102,0.00024657,2]
[337773784,1726101047663,-500.0,0.00024657,2]
[337773785,1726101047672,-671.0,0.00024657,2]
[337773786,1726101047681,-500.0,0.00024657,2]
[337773787,1726101047690,-500.0,0.00024657,2]
[337773788,1726101047699,-500.0,0.00024657,2]
[337773789,1726101047708,-500.0,0.00024657,2]
[337773790,1726101047718,-500.0,0.00024657,2]
[337773791,1726101047727,-594.46,0.00024657,2]
[337773792,1726101047736,-531.23,0.00024657,2]
[337773793,1726101047745,-500.0,0.00024657,2]
[337773794,1726101047755,-500.0,0.00024657,2]
[337773795,1726101047764,-500.0,0.00024657,2]
[337773796,1726101047773,-491.3067054,0.00024657,2]
[337773797,1726101047782,-500.0,0.00024657,2]
[337773798,1726101047792,-500.0,0.00024657,2]
[337773799,1726101047801,-438.22598992,0.00024657,2]
[337773800,1726101047819,-61.77401008,0.00024657,2]
[337773801,1726101047829,-500.0,0.00024657,2]
[337773802,1726101047848,-151.0,0.00024657,7]
[337773803,1726101047857,-151.0,0.00024657,7]
[337773804,1726101047866,-151.0,0.00024657,7]
[337773805,1726101047875,-151.0,0.00024657,7]
[337773806,1726101047885,-151.0,0.00024657,7]
[337773807,1726101047894,-151.0,0.00024657,7]
[337773808,1726101047903,-151.0,0.00024657,7]
[337773809,1726101047912,-222.793296,0.00024657,7]
[337773810,1726101047922,-500.0,0.00024657,2]
[337773811,1726101047930,-1184.06,0.00024657,2]
[337773812,1726101047940,-1171.59,0.00024657,2]
[337773813,1726101047949,-500.0,0.00024657,2]
[337773814,1726101047958,-500.0,0.00024657,2]
[337773815,1726101047967,-500.0,0.00024657,2]
[337773816,1726101047977,-778.3,0.00024657,2]
[337773817,1726101047986,-500.0,0.00024657,2]
[337773818,1726101047995,-888.31,0.00024657,2]
[337773819,1726101048004,-943.57,0.00024657,2]
[337773820,1726101048013,-500.0,0.00024657,2]
[337773821,1726101048023,-500.0,0.00024657,2]
[337773822,1726101048033,-500.0,0.00024657,2]
[337773823,1726101048042,-500.0,0.00024657,2]
[337773824,1726101048051,-602.65,0.00024657,2]
[337773825,1726101048061,-500.0,0.00024657,2]
[337773826,1726101048070,-500.0,0.00024657,2]
[337773827,1726101048079,-500.0,0.00024657,2]
[337773828,1726101048089,-500.0,0.00024657,2]
[337773829,1726101048098,-500.0,0.00024657,2]
[337773830,1726101048107,-500.0,0.00024657,2]
[337773831,1726101048117,-500.0,0.00024657,2]
[337773832,1726101048126,-1357.04,0.00024657,2]
[337773833,1726101048135,-500.0,0.00024657,2]
[337773834,1726101048145,-747.48,0.00024657,2]
[337773835,1726101048155,-1245.27,0.00024657,2]
[337773836,1726101048167,-500.0,0.00024657,2]
[337773837,1726101048176,-331.71213284,0.00024657,2]
[337773839,1726101205795,2900.0,0.00019,2]
[337773842,1726101939400,-654.56328452,0.00021072,2]
[337773843,1726102028144,-200.0,0.00021071,2]
[337773844,1726102028165,-345.43671548,0.00021072,2]
[337773845,1726102028186,-250.0,0.00021073,2]
[337773846,1726102028206,-300.56021121,0.00021111,2]
[337773847,1726102033110,-371.82406717,0.00021111,2]
[337773848,1726102038105,-279.44823048,0.00021111,2]
[337773849,1726102145156,-2048.16749114,0.00021111,2]
[337773850,1726102145178,-250.0,0.0002113,2]
[337773851,1726102145203,-250.0,0.00021188,2]
[337773852,1726102145226,-1000.0,0.00021244,2]
[337773853,1726102145249,-250.0,0.00021246,2]
[337773854,1726102145272,-250.0,0.00021304,2]
[337773855,1726102145293,-250.0,0.00021362,2]
[337773856,1726102145314,-250.0,0.00021419,2]
[337773857,1726102145335,-250.0,0.00021477,2]
[337773858,1726102145355,-250.0,0.00021535,2]
[337773859,1726102145376,-250.0,0.00021593,2]
[337773860,1726102145397,-250.0,0.0002165,2]
[337773861,1726102145418,-250.0,0.00021708,2]
[337773862,1726102145440,-2170.19844895,0.00021718,2]
[337773863,1726102145463,-250.0,0.00021766,2]
[337773864,1726102145486,-300.0,0.0002177,2]
[337773865,1726102145507,-300.0,0.0002177,2]
[337773866,1726102145528,-5086.190936,0.00021771,2]
[337773867,1726102145550,-2491.59876221,0.00021798,2]
[337773868,1726102145577,-22408.40123779,0.00021798,2]
[337773869,1726102145598,-192.66650845,0.00021818,2]
[337773870,1726102145623,-250.0,0.00021824,2]
[337773871,1726102145646,-251.0,0.0002183,2]
[337773872,1726102145668,-250.0,0.00021845,2]
[337773873,1726102145692,-314.599818,0.00021865,2]
[337773874,1726102145716,-250.0,0.00021882,2]
[337773875,1726102145737,-166.755208,0.00021918,2]
[337773876,1726102145762,-280.603871,0.00021918,2]
[337773877,1726102145784,-250.0,0.00021939,2]
[337773878,1726102145805,-250.0,0.00021997,2]
[337773879,1726102145826,-250.0,0.00022055,2]
[337773880,1726102145848,-250.0,0.00022113,2]
[337773881,1726102145872,-250.0,0.0002217,2]
[337773884,1726102193462,192.66650845,0.00021011,2]
[337774057,1726102233374,-5086.190936,0.00022456,2]
[337774060,1726102233385,-1704.80124376,0.00023141,2]
[337774061,1726102233398,-276.31879854,0.00023141,2]
[337774218,1726102237844,-3105.0708937,0.00023141,2]
[337774219,1726102237854,-24900.0,0.00023408,2]
[337774220,1726102237863,-5117.31013799,0.00023873,2]
[337774221,1726102237873,-178.297709,0.00024193,2]
[337774222,1726102237882,-301.185859,0.00024193,2]
[337774223,1726102237891,-2170.19844891,0.00024235,2]
[337774224,1726102238219,-5117.31013799,0.00024237,2]
[337774225,1726102238237,-150.59905972,0.00024401,2]
[337774226,1726102238256,-5117.31013799,0.00024453,2]
[337774227,1726102238267,-301.185859,0.00024495,2]
[337774228,1726102238276,-167.856,0.00024588,7]
[337774229,1726102238288,-154.0,0.000246,2]
[337774230,1726102238297,-150.112233,0.000246,5]
[337774231,1726102238307,-150.112233,0.000246,2]
[337774232,1726102238316,-150.112233,0.000246,4]
[337774233,1726102238325,-150.112233,0.000246,3]
[337774234,1726102238335,-225.88810949,0.00024614,2]
[337774235,1726102238344,-500.0,0.00024614,2]
[337774236,1726102238353,-500.0,0.00024614,2]
[337774237,1726102238362,-500.0,0.00024614,2]
[337774238,1726102238371,-500.0,0.00024614,2]
[337774239,1726102238381,-500.0,0.00024614,2]
[337774240,1726102238390,-500.0,0.00024614,2]
[337774241,1726102238399,-500.0,0.00024614,2]
[337774242,1726102238408,-500.0,0.00024614,2]
[337774243,1726102238417,-500.0,0.00024614,2]
[337774244,1726102238426,-500.0,0.00024614,2]
[337774245,1726102238436,-500.0,0.00024614,2]
[337774246,1726102238445,-500.0,0.00024614,2]
[337774247,1726102238454,-500.0,0.00024614,2]
[337774248,1726102238463,-500.0,0.00024614,2]
[337774249,1726102238472,-500.0,0.00024614,2]
[337774250,1726102238481,-500.0,0.00024614,2]
[337774251,1726102238490,-500.0,0.00024614,2]
[337774252,1726102238499,-500.0,0.00024614,2]
[337774253,1726102238508,-500.0,0.00024614,2]
[337774254,1726102238517,-500.0,0.00024614,2]
[337774255,1726102238526,-500.0,0.00024614,2]
[337774256,1726102238537,-500.0,0.00024614,2]
[337774257,1726102238546,-500.0,0.00024614,2]
[337774258,1726102238559,-500.0,0.00024614,2]
[337774259,1726102238569,-500.0,0.00024614,2]
[337774260,1726102238578,-500.0,0.00024614,2]
[337774261,1726102238587,-423.11810499,0.00024614,2]
[337774262,1726102238596,-25566.01319559,0.00024615,2]
[337774263,1726102238609,-718.49619732,0.00024615,2]
[337774274,1726102239802,-52196.69499743,0.00024615,2]
[337774483,1726102242878,-11366.61308313,0.00024615,2]
[337774484,1726102242891,-14923.00402653,0.00024615,2]
[337774485,1726102242900,-500.0,0.00024616,2]
[337774486,1726102242909,-507.1735648,0.00024616,2]
[337774487,1726102242919,-218.72015356,0.00024616,2]
[337774488,1726102242928,-500.0,0.00024616,2]
[337774489,1726102242938,-492.76546473,0.00024616,2]
[337774490,1726102242947,-500.0,0.00024616,2]
[337774491,1726102242957,-45831.6380552,0.00024617,3]
[337774492,1726102242967,-15789.8658607,0.00024617,3]
[337774493,1726102242976,-45831.6380552,0.00024637,3]
[337774494,1726102242985,-15789.8658607,0.00024637,3]
[337774495,1726102242994,-151.0,0.00024637,7]
[337774496,1726102243004,-151.0,0.00024637,7]
[337774497,1726102243014,-151.0,0.00024637,7]
[337774498,1726102243024,-184.098956,0.00024637,7]
[337774499,1726102243033,-184.098956,0.00024637,7]
[337774500,1726102243044,-151.0,0.00024637,7]
[337774501,1726102243054,-151.0,0.00024637,7]
[337774502,1726102243063,-151.0,0.00024637,7]
[337774503,1726102243072,-151.0,0.00024637,7]
[337774504,1726102243081,-287.699112,0.00024637,7]
[337774505,1726102243090,-151.0,0.00024637,7]
[337774506,1726102243099,-151.0,0.00024637,7]
[337774507,1726102243109,-151.0,0.00024637,7]
[337774508,1726102243118,-151.0,0.00024637,7]
[337774509,1726102243127,-151.0,0.00024637,7]
[337774510,1726102243136,-151.0,0.00024637,7]
[337774511,1726102243145,-154.05373,0.00024637,7]
[337774512,1726102243155,-151.0,0.00024637,7]
[337774513,1726102243164,-151.0,0.00024637,7]
[337774514,1726102243173,-151.0,0.00024637,7]
[337774515,1726102243183,-45831.6380552,0.00024637,3]
[337774516,1726102243193,-15789.8658607,0.00024637,3]
[337774517,1726102243202,-151.0,0.0002464,7]
[337774518,1726102243212,-151.0,0.0002464,7]
[337774519,1726102243223,-151.0,0.0002464,7]
[337774520,1726102243232,-45831.6380552,0.0002464,3]
[337774521,1726102243242,-15789.8658607,0.0002464,3]
[337774522,1726102243251,-524.0,0.00024642,2]
[337774523,1726102243260,-150.0,0.00024642,2]
[337774524,1726102243270,-21000.50718164,0.00024647,3]
[337774572,1726103138141,-251.0,0.00021598,2]
[337774573,1726103138165,-195.80416461,0.00021918,2]
[337774574,1726103230138,-180.39009,0.00020524,2]
[337774575,1726103230159,-281.783469,0.00021918,2]
[337774576,1726103230181,-110.10244368,0.00021949,2]
[337774577,1726103234103,-139.89755632,0.00021949,2]
[337774578,1726103234125,-157.0,0.00022,2]
[337774579,1726103234148,-244.8233431,0.00022009,2]
[337774580,1726103237307,-5.1766569,0.00022009,2]
[337774581,1726103237329,-250.0,0.00022069,2]
[337774582,1726103237350,-250.0,0.00022129,2]
[337774583,1726103237371,-250.0,0.00022189,2]
[337774584,1726103237390,-189.20196424,0.0002221,2]
[337774585,1726103237410,-250.0,0.0002225,2]
[337774586,1726103237429,-3000.0,0.00022274,2]
[337774587,1726103237449,-250.0,0.0002231,2]
[337774588,1726103237468,-937.14287815,0.00022356,2]
[337774589,1726103237487,-250.0,0.0002237,2]
[337774590,1726103237509,-250.0,0.0002243,2]
[337774591,1726103237529,-250.0,0.0002249,2]
[337774592,1726103237551,-250.0,0.00022551,2]
[337774593,1726103237570,-250.0,0.00022611,2]
[337774594,1726103237591,-250.0,0.00022671,2]
[337774595,1726103237611,-250.0,0.00022731,2]
[337774596,1726103237631,-250.0,0.00022791,2]
[337774597,1726103237651,-250.0,0.00022851,2]
[337774598,1726103237672,-250.0,0.00022912,2]
[337774599,1726103237692,-300.0,0.00022971,2]
[337774600,1726103237712,-250.0,0.00022972,2]
[337774601,1726103237732,-300.0,0.00022972,2]
[337774602,1726103237753,-157.0,0.00023014,2]
[337774603,1726103237774,-250.0,0.00023032,2]
[337774604,1726103237794,-389.484205,0.00023044,2]
[337774605,1726103237814,-2068.37936036,0.00023058,2]
[337774606,1726103237834,-172.473177,0.00023075,2]
[337774607,1726103237855,-250.0,0.00023092,2]
[337774608,1726103237876,-2829.07008342,0.00023132,2]